[Event "*** MasterClass Titled Tuesday Blitz"]
[Site "Chess.com"]
[Date "2017.09.05"]
[Round "6"]
[White "pawnwonder"]
[Black "Carolina-moon"]
[Result "1-0"]
[WhiteElo "1998"]
[BlackElo "2122"]
[TimeControl "180+2"]
[EndTime "14:29:29 PDT"]
[Termination "pawnwonder won by resignation"]

1. e4 {[%clk 0:03:01.9]} 1... c5 {[%clk 0:02:59.6]} 2. Nf3 {[%clk 0:03:02.7]}
2... d6 {[%clk 0:02:59.4]} 3. c3 {[%clk 0:03:02.1]} 3... Nf6 {[%clk 0:02:59.3]}
4. Be2 {[%clk 0:03:03.4]} 4... Nbd7 {[%clk 0:02:58.9]} 5. Qc2 {[%clk 0:03:03]}
5... g6 {[%clk 0:02:55.1]} 6. O-O {[%clk 0:03:03.7]} 6... Bg7 {[%clk 0:02:56.7]}
7. d4 {[%clk 0:03:04.8]} 7... O-O {[%clk 0:02:57.7]} 8. Rd1 {[%clk 0:03:01.3]}
8... cxd4 {[%clk 0:02:58.3]} 9. cxd4 {[%clk 0:03:01.4]} 9... d5 {[%clk
0:02:56.3]} 10. e5 {[%clk 0:02:57.5]} 10... Ne4 {[%clk 0:02:55.6]} 11. Nc3
{[%clk 0:02:58.8]} 11... Nxc3 {[%clk 0:02:55.8]} 12. bxc3 {[%clk 0:03:00.1]}
12... Nb6 {[%clk 0:02:56]} 13. Be3 {[%clk 0:02:52.6]} 13... Bf5 {[%clk
0:02:53.6]} 14. Qd2 {[%clk 0:02:50.6]} 14... Rc8 {[%clk 0:02:51]} 15. Bh6 {[%clk
0:02:41.1]} 15... Nc4 {[%clk 0:02:42]} 16. Bxc4 {[%clk 0:02:40.2]} 16... Rxc4
{[%clk 0:02:41.5]} 17. Bxg7 {[%clk 0:02:40.9]} 17... Kxg7 {[%clk 0:02:42.5]} 18.
h3 {[%clk 0:02:37.8]} 18... Qd7 {[%clk 0:02:36.1]} 19. Nh4 {[%clk 0:02:30.4]}
19... Bxh3 {[%clk 0:02:26.1]} 20. gxh3 {[%clk 0:02:27.9]} 20... Qxh3 {[%clk
0:02:26.8]} 21. Ng2 {[%clk 0:02:28.4]} 21... Rxc3 {[%clk 0:02:18.8]} 22. Rdc1
{[%clk 0:02:26.6]} 22... Rfc8 {[%clk 0:02:09.3]} 23. Rxc3 {[%clk 0:02:23.3]}
23... Rxc3 {[%clk 0:02:10.1]} 24. Rc1 {[%clk 0:02:01.7]} 24... Rd3 {[%clk
0:02:10.7]} 25. Qb4 {[%clk 0:02:02]} 25... e6 {[%clk 0:01:46.1]} 26. Qe7 {[%clk
0:00:55.1]} 26... Rf3 {[%clk 0:01:45.4]} 27. Rc8 {[%clk 0:00:49.9]} 27... Kh6
{[%clk 0:01:18]} 28. Rh8 {[%clk 0:00:25.7]} 28... Rc3 {[%clk 0:01:06.5]} 29.
Qf8+ {[%clk 0:00:22.9]} 29... Kg5 {[%clk 0:01:05.9]} 30. Qd8+ {[%clk 0:00:18.2]}
30... Kg4 {[%clk 0:00:57.9]} 31. Ne3+ {[%clk 0:00:15.1]} 31... Rxe3 {[%clk
0:00:56.9]} 32. fxe3 {[%clk 0:00:17]} 32... Kf3 {[%clk 0:00:56.3]} 33. Qf6+
{[%clk 0:00:16.4]} 33... Kxe3 {[%clk 0:00:55.4]} 34. Qf2+ {[%clk 0:00:16.9]}
34... Ke4 {[%clk 0:00:56.8]} 35. Rc8 {[%clk 0:00:16.5]} 35... g5 {[%clk
0:00:49.9]} 36. Qg2+ {[%clk 0:00:16.4]} 36... Qxg2+ {[%clk 0:00:50.5]} 37. Kxg2
{[%clk 0:00:18.3]} 37... Kxd4 {[%clk 0:00:51.1]} 38. Rc7 {[%clk 0:00:19.4]}
38... Kxe5 {[%clk 0:00:49.8]} 39. Rxf7 {[%clk 0:00:20.6]} 39... d4 {[%clk
0:00:51.3]} 40. Rxh7 {[%clk 0:00:20.5]} 40... d3 {[%clk 0:00:51.7]} 41. Kf2
{[%clk 0:00:21.3]} 41... Ke4 {[%clk 0:00:48.8]} 42. Ke1 {[%clk 0:00:21.4]} 42...
e5 {[%clk 0:00:48.2]} 43. Rxb7 {[%clk 0:00:22.1]} 43... Ke3 {[%clk 0:00:49]} 44.
Rg7 {[%clk 0:00:21.7]} 44... e4 {[%clk 0:00:36]} 45. Rxg5 {[%clk 0:00:21.2]}
45... Kd4 {[%clk 0:00:37.6]} 46. Rg4 {[%clk 0:00:20.2]} 46... a5 {[%clk
0:00:38.1]} 47. Kd2 {[%clk 0:00:20.8]} 47... a4 {[%clk 0:00:38]} 48. a3 {[%clk
0:00:21.7]} 48... Kc4 {[%clk 0:00:37.2]} 49. Rxe4+ {[%clk 0:00:22]} 49... Kb3
{[%clk 0:00:38.9]} 50. Kxd3 {[%clk 0:00:17.1]} 50... Kxa3 {[%clk 0:00:40.1]} 51.
Re2 {[%clk 0:00:17.7]} 51... Kb3 {[%clk 0:00:40.5]} 52. Rc2 {[%clk 0:00:17.7]}
52... a3 {[%clk 0:00:41.4]} 53. Rc8 {[%clk 0:00:11.5]} 53... a2 {[%clk
0:00:40.6]} 54. Rb8+ {[%clk 0:00:12.4]} 54... Ka3 {[%clk 0:00:41.3]} 55. Kc2
{[%clk 0:00:11.9]} 55... a1=Q {[%clk 0:00:32.2]} 56. Ra8+ {[%clk 0:00:10.8]}
56... Kb4 {[%clk 0:00:33.3]} 57. Rxa1 {[%clk 0:00:12.1]} 1-0

[Event "*** MasterClass Titled Tuesday Blitz"]
[Site "Chess.com"]
[Date "2017.09.05"]
[Round "6"]
[White "Aariow"]
[Black "tomsishere"]
[Result "1-0"]
[WhiteElo "2372"]
[BlackElo "2287"]
[TimeControl "180+2"]
[EndTime "14:29:49 PDT"]
[Termination "Aariow won by checkmate"]

1. Nf3 {[%clk 0:03:01.9]} 1... c5 {[%clk 0:02:59.9]} 2. b3 {[%clk 0:03:00.1]}
2... Nc6 {[%clk 0:02:59.3]} 3. Bb2 {[%clk 0:03:00.4]} 3... d6 {[%clk 0:02:58]}
4. d4 {[%clk 0:03:01.9]} 4... cxd4 {[%clk 0:02:56.3]} 5. Nxd4 {[%clk 0:03:03.8]}
5... Nf6 {[%clk 0:02:54.1]} 6. g3 {[%clk 0:03:04.6]} 6... g6 {[%clk 0:02:54.7]}
7. Bg2 {[%clk 0:03:05.6]} 7... Bd7 {[%clk 0:02:51.1]} 8. O-O {[%clk 0:03:05.6]}
8... Bg7 {[%clk 0:02:50.9]} 9. c4 {[%clk 0:03:06.6]} 9... O-O {[%clk 0:02:51.1]}
10. Nc3 {[%clk 0:03:07]} 10... a6 {[%clk 0:02:49]} 11. Rc1 {[%clk 0:03:06.6]}
11... Rc8 {[%clk 0:02:46.3]} 12. Nd5 {[%clk 0:02:52.5]} 12... Nxd5 {[%clk
0:02:38.1]} 13. Bxd5 {[%clk 0:02:54.4]} 13... Qa5 {[%clk 0:02:28.9]} 14. Bc3
{[%clk 0:02:44.9]} 14... Qc5 {[%clk 0:02:24.9]} 15. Nxc6 {[%clk 0:02:37.2]}
15... Bxc6 {[%clk 0:02:10.1]} 16. Bxg7 {[%clk 0:02:37.6]} 16... Kxg7 {[%clk
0:02:09.7]} 17. Qd2 {[%clk 0:02:36.9]} 17... Rc7 {[%clk 0:01:43.4]} 18. Qb2+
{[%clk 0:02:25.4]} 18... Kg8 {[%clk 0:01:39.2]} 19. h4 {[%clk 0:02:26.2]} 19...
a5 {[%clk 0:01:05.6]} 20. h5 {[%clk 0:02:23.9]} 20... Rfc8 {[%clk 0:00:37]} 21.
h6 {[%clk 0:02:13.1]} 21... e5 {[%clk 0:00:37.9]} 22. Rcd1 {[%clk 0:02:13.8]}
22... Qb6 {[%clk 0:00:33.2]} 23. Qc1 {[%clk 0:02:10.2]} 23... Bxd5 {[%clk
0:00:22.6]} 24. Rxd5 {[%clk 0:02:10.7]} 24... Rc6 {[%clk 0:00:20.6]} 25. Qg5
{[%clk 0:02:06.5]} 25... Qd8 {[%clk 0:00:21.5]} 26. Qxd8+ {[%clk 0:02:07.8]}
26... Rxd8 {[%clk 0:00:21.5]} 27. Rfd1 {[%clk 0:02:09.5]} 27... b6 {[%clk
0:00:21.8]} 28. Rxe5 {[%clk 0:02:10.4]} 28... Kf8 {[%clk 0:00:19.7]} 29. Red5
{[%clk 0:02:07]} 29... Ke7 {[%clk 0:00:20.4]} 30. e4 {[%clk 0:02:08.6]} 30...
Ke6 {[%clk 0:00:21.1]} 31. f4 {[%clk 0:02:09.1]} 31... a4 {[%clk 0:00:21.2]} 32.
Kf2 {[%clk 0:02:07.5]} 32... axb3 {[%clk 0:00:21.4]} 33. axb3 {[%clk 0:02:08.7]}
33... Ra8 {[%clk 0:00:22.5]} 34. Kf3 {[%clk 0:02:06.9]} 34... Ra3 {[%clk
0:00:22.8]} 35. R1d3 {[%clk 0:02:08.3]} 35... f6 {[%clk 0:00:21.3]} 36. f5+
{[%clk 0:02:07.9]} 36... gxf5 {[%clk 0:00:18.8]} 37. exf5+ {[%clk 0:02:08.6]}
37... Ke7 {[%clk 0:00:19.9]} 38. R5d4 {[%clk 0:02:08.4]} 38... Ra2 {[%clk
0:00:17.6]} 39. Re4+ {[%clk 0:02:09.2]} 39... Kf7 {[%clk 0:00:18.7]} 40. Re6
{[%clk 0:02:10.8]} 40... Rb2 {[%clk 0:00:18.3]} 41. Rexd6 {[%clk 0:02:08]} 41...
Rxd6 {[%clk 0:00:18.6]} 42. Rxd6 {[%clk 0:02:09.9]} 42... Rxb3+ {[%clk
0:00:19.6]} 43. Kf4 {[%clk 0:02:10.5]} 43... Rb4 {[%clk 0:00:16.3]} 44. Rd7+
{[%clk 0:02:11.4]} 44... Kg8 {[%clk 0:00:14.6]} 45. Rg7+ {[%clk 0:02:11.9]}
45... Kh8 {[%clk 0:00:14.5]} 46. Rc7 {[%clk 0:02:11.8]} 46... Kg8 {[%clk
0:00:15.7]} 47. Ke3 {[%clk 0:02:01.5]} 47... b5 {[%clk 0:00:14.3]} 48. c5 {[%clk
0:02:00.1]} 48... Rc4 {[%clk 0:00:15.2]} 49. c6 {[%clk 0:02:00.8]} 49... b4
{[%clk 0:00:15.9]} 50. Rc8+ {[%clk 0:02:01.7]} 50... Kf7 {[%clk 0:00:16.4]} 51.
c7 {[%clk 0:02:03.2]} 51... b3 {[%clk 0:00:16.1]} 52. Rh8 {[%clk 0:02:04.2]}
52... b2 {[%clk 0:00:15.5]} 53. Rb8 {[%clk 0:01:48.9]} 53... Rxc7 {[%clk
0:00:16.3]} 54. Rxb2 {[%clk 0:01:50.5]} 54... Rc3+ {[%clk 0:00:17.8]} 55. Kf4
{[%clk 0:01:50.9]} 55... Rc4+ {[%clk 0:00:19]} 56. Kf3 {[%clk 0:01:52]} 56...
Rc3+ {[%clk 0:00:20.3]} 57. Kg4 {[%clk 0:01:52.8]} 57... Rc4+ {[%clk 0:00:20.9]}
58. Kh3 {[%clk 0:01:49.2]} 58... Rc5 {[%clk 0:00:18.9]} 59. Rb7+ {[%clk
0:01:49.4]} 59... Kg8 {[%clk 0:00:16.3]} 60. Rg7+ {[%clk 0:01:50.1]} 60... Kf8
{[%clk 0:00:14.4]} 61. g4 {[%clk 0:01:45.1]} 61... Rc1 {[%clk 0:00:09.6]} 62.
Rxh7 {[%clk 0:01:44.8]} 62... Kg8 {[%clk 0:00:10.3]} 63. Rg7+ {[%clk 0:01:44.6]}
63... Kh8 {[%clk 0:00:11.1]} 64. Rg6 {[%clk 0:01:46.2]} 64... Rc6 {[%clk
0:00:09.9]} 65. Kg3 {[%clk 0:01:46.2]} 65... Kh7 {[%clk 0:00:09.6]} 66. Kf3
{[%clk 0:01:47]} 66... Rc3+ {[%clk 0:00:10.4]} 67. Ke4 {[%clk 0:01:47.9]} 67...
Rc4+ {[%clk 0:00:11.7]} 68. Kd5 {[%clk 0:01:48.1]} 68... Ra4 {[%clk 0:00:12.8]}
69. Ke6 {[%clk 0:01:47]} 69... Ra6+ {[%clk 0:00:13.7]} 70. Kf7 {[%clk
0:01:48.2]} 70... Ra4 {[%clk 0:00:10.3]} 71. Kxf6 {[%clk 0:01:48.2]} 71... Re4
{[%clk 0:00:10.8]} 72. Kg5 {[%clk 0:01:49.1]} 72... Re1 {[%clk 0:00:10.6]} 73.
Rg7+ {[%clk 0:01:50.4]} 73... Kh8 {[%clk 0:00:11.2]} 74. Ra7 {[%clk 0:01:48.2]}
74... Re5 {[%clk 0:00:10.8]} 75. Kg6 {[%clk 0:01:48.3]} 75... Re8 {[%clk
0:00:10.6]} 76. f6 {[%clk 0:01:48.8]} 76... Rg8+ {[%clk 0:00:10.8]} 77. Rg7
{[%clk 0:01:50.4]} 77... Rf8 {[%clk 0:00:11.5]} 78. f7 {[%clk 0:01:41.4]} 78...
Rd8 {[%clk 0:00:11.9]} 79. Rh7# {[%clk 0:01:42.7]} 1-0

[Event "*** MasterClass Titled Tuesday Blitz"]
[Site "Chess.com"]
[Date "2017.09.05"]
[Round "6"]
[White "ChessQueen"]
[Black "Frolik67"]
[Result "1-0"]
[WhiteElo "2599"]
[BlackElo "2511"]
[TimeControl "180+2"]
[EndTime "14:29:51 PDT"]
[Termination "ChessQueen won by resignation"]

1. e4 {[%clk 0:03:01.9]} 1... e6 {[%clk 0:03:00.5]} 2. d4 {[%clk 0:03:02.4]}
2... d5 {[%clk 0:03:01.3]} 3. Nc3 {[%clk 0:03:03.6]} 3... Nf6 {[%clk 0:03:01.5]}
4. Bg5 {[%clk 0:03:04.4]} 4... Be7 {[%clk 0:03:01.7]} 5. e5 {[%clk 0:03:05.2]}
5... Nfd7 {[%clk 0:03:02.9]} 6. h4 {[%clk 0:03:06.3]} 6... h6 {[%clk 0:03:03.7]}
7. Bxe7 {[%clk 0:03:05.1]} 7... Qxe7 {[%clk 0:03:05.7]} 8. Qg4 {[%clk
0:03:05.2]} 8... Kf8 {[%clk 0:03:00.1]} 9. h5 {[%clk 0:02:59]} 9... c5 {[%clk
0:03:00]} 10. Nf3 {[%clk 0:02:57.4]} 10... cxd4 {[%clk 0:02:59.6]} 11. Qxd4
{[%clk 0:02:54.6]} 11... Nc6 {[%clk 0:02:59.6]} 12. Qf4 {[%clk 0:02:41.5]} 12...
a6 {[%clk 0:02:52.8]} 13. a3 {[%clk 0:02:36.4]} 13... b5 {[%clk 0:02:52.6]} 14.
Bd3 {[%clk 0:02:34.6]} 14... Kg8 {[%clk 0:02:39.5]} 15. Rh3 {[%clk 0:02:26.6]}
15... b4 {[%clk 0:02:19.6]} 16. axb4 {[%clk 0:02:21.5]} 16... Qxb4 {[%clk
0:02:21.6]} 17. Qxb4 {[%clk 0:02:01.7]} 17... Nxb4 {[%clk 0:02:23.6]} 18. Kd2
{[%clk 0:02:00.3]} 18... Nxd3 {[%clk 0:02:18.9]} 19. Kxd3 {[%clk 0:01:48.5]}
19... f6 {[%clk 0:02:17.5]} 20. Re1 {[%clk 0:01:44.6]} 20... Kf7 {[%clk
0:02:16.3]} 21. Rh4 {[%clk 0:01:41.9]} 21... a5 {[%clk 0:02:14.2]} 22. Rf4
{[%clk 0:01:29.4]} 22... Ba6+ {[%clk 0:02:13.9]} 23. Kd2 {[%clk 0:01:30.5]}
23... Rhb8 {[%clk 0:02:13.8]} 24. b3 {[%clk 0:01:25.6]} 24... Rb4 {[%clk
0:02:06.5]} 25. g3 {[%clk 0:00:56.5]} 25... Bb7 {[%clk 0:01:53.5]} 26. Na4
{[%clk 0:00:41.2]} 26... Rc8 {[%clk 0:01:46.2]} 27. Nb2 {[%clk 0:00:38.7]} 27...
Ke7 {[%clk 0:01:43.9]} 28. Nd3 {[%clk 0:00:37.3]} 28... Rb6 {[%clk 0:01:39.4]}
29. Nd4 {[%clk 0:00:28.5]} 29... Ba6 {[%clk 0:01:31.1]} 30. exf6+ {[%clk
0:00:20.8]} 30... Nxf6 {[%clk 0:01:21.2]} 31. Nf5+ {[%clk 0:00:14.2]} 31... Kf7
{[%clk 0:01:19.6]} 32. Nh4 {[%clk 0:00:14.4]} 32... Kg8 {[%clk 0:01:17]} 33. Ra4
{[%clk 0:00:15.2]} 33... Ne4+ {[%clk 0:01:16.9]} 34. Kd1 {[%clk 0:00:10]} 34...
Nc3+ {[%clk 0:01:16.9]} 35. Kd2 {[%clk 0:00:11.4]} 35... Nxa4 {[%clk 0:01:17.3]}
36. bxa4 {[%clk 0:00:12.9]} 36... Bxd3 {[%clk 0:01:18.3]} 37. Kxd3 {[%clk
0:00:14]} 37... Rc4 {[%clk 0:01:16.8]} 38. Ng6 {[%clk 0:00:15]} 38... Rxa4
{[%clk 0:01:16.1]} 39. f4 {[%clk 0:00:15.5]} 39... Ra3+ {[%clk 0:01:15.1]} 40.
c3 {[%clk 0:00:16.9]} 40... Rc6 {[%clk 0:01:14.8]} 41. Ne7+ {[%clk 0:00:17.3]}
41... Kf7 {[%clk 0:01:14.2]} 42. Nxc6 {[%clk 0:00:18.8]} 42... Ra2 {[%clk
0:01:15.3]} 43. Ne5+ {[%clk 0:00:19.4]} 43... Kf6 {[%clk 0:01:16.8]} 44. g4
{[%clk 0:00:20.3]} 44... Rf2 {[%clk 0:01:16.3]} 45. Ke3 {[%clk 0:00:21.4]} 45...
Rc2 {[%clk 0:01:16]} 46. Kd3 {[%clk 0:00:22.2]} 46... Rf2 {[%clk 0:01:17]} 47.
Ke3 {[%clk 0:00:19.1]} 47... Rc2 {[%clk 0:01:17.7]} 48. Kd4 {[%clk 0:00:20.7]}
48... Rf2 {[%clk 0:01:11.8]} 49. Nd3 {[%clk 0:00:21.5]} 49... Rg2 {[%clk
0:01:12.9]} 50. Nc5 {[%clk 0:00:21.5]} 50... Rxg4 {[%clk 0:01:13.9]} 51. Rxe6+
{[%clk 0:00:21.3]} 51... Kf5 {[%clk 0:01:15.3]} 52. Kxd5 {[%clk 0:00:22.6]}
52... Rg3 {[%clk 0:01:14]} 53. c4 {[%clk 0:00:20.8]} 53... Kxf4 {[%clk
0:01:15.2]} 54. Re5 {[%clk 0:00:18.3]} 54... Rc3 {[%clk 0:01:00.2]} 55. Ne6+
{[%clk 0:00:19]} 55... Kg4 {[%clk 0:01:00.9]} 56. Nd4 {[%clk 0:00:20.4]} 56...
a4 {[%clk 0:01:00.1]} 57. Re7 {[%clk 0:00:21.9]} 57... Kxh5 {[%clk 0:00:55.3]}
58. Rxg7 {[%clk 0:00:22.5]} 58... a3 {[%clk 0:00:56.8]} 59. c5 {[%clk
0:00:22.6]} 59... a2 {[%clk 0:00:57.7]} 60. Ra7 {[%clk 0:00:23.6]} 60... Kg4
{[%clk 0:00:55.7]} 61. Rxa2 {[%clk 0:00:24.3]} 61... h5 {[%clk 0:00:57.3]} 62.
c6 {[%clk 0:00:25]} 62... h4 {[%clk 0:00:58.5]} 63. Ra4 {[%clk 0:00:20.6]} 63...
Kh5 {[%clk 0:00:52.2]} 64. Ne6 {[%clk 0:00:17]} 64... h3 {[%clk 0:00:52.1]} 65.
Nf4+ {[%clk 0:00:18.1]} 65... Kg5 {[%clk 0:00:49]} 66. Nxh3+ {[%clk 0:00:18.1]}
66... Rxh3 {[%clk 0:00:49.6]} 67. c7 {[%clk 0:00:18.7]} 67... Rd3+ {[%clk
0:00:46.7]} 68. Rd4 {[%clk 0:00:18.6]} 68... Rc3 {[%clk 0:00:45.5]} 69. Rc4
{[%clk 0:00:19.7]} 69... Rd3+ {[%clk 0:00:46.6]} 70. Kc6 {[%clk 0:00:20.7]} 1-0

[Event "*** MasterClass Titled Tuesday Blitz"]
[Site "Chess.com"]
[Date "2017.09.05"]
[Round "6"]
[White "Noukii"]
[Black "Keaton87"]
[Result "1/2-1/2"]
[WhiteElo "2647"]
[BlackElo "2484"]
[TimeControl "180+2"]
[EndTime "14:30:06 PDT"]
[Termination "Game drawn by agreement"]

1. d4 {[%clk 0:03:01.9]} 1... d5 {[%clk 0:03:00.6]} 2. c4 {[%clk 0:03:02.2]}
2... e6 {[%clk 0:03:01.9]} 3. Nf3 {[%clk 0:03:02.5]} 3... Nf6 {[%clk 0:03:01.9]}
4. g3 {[%clk 0:03:03.7]} 4... Be7 {[%clk 0:03:01.3]} 5. Bg2 {[%clk 0:03:04.9]}
5... O-O {[%clk 0:03:02.5]} 6. O-O {[%clk 0:03:06.5]} 6... dxc4 {[%clk
0:03:03.8]} 7. Qc2 {[%clk 0:03:08.1]} 7... a6 {[%clk 0:02:59.6]} 8. a4 {[%clk
0:03:09.6]} 8... Bd7 {[%clk 0:02:58.9]} 9. Bg5 {[%clk 0:03:11.1]} 9... Bc6
{[%clk 0:02:56.8]} 10. Bxf6 {[%clk 0:03:12.3]} 10... Bxf6 {[%clk 0:02:56.9]} 11.
Nbd2 {[%clk 0:03:13.7]} 11... Bxf3 {[%clk 0:02:54.1]} 12. Nxf3 {[%clk
0:03:13.6]} 12... Nd7 {[%clk 0:02:49.5]} 13. Qxc4 {[%clk 0:03:09.9]} 13... c6
{[%clk 0:02:50.6]} 14. a5 {[%clk 0:03:07.4]} 14... Qe7 {[%clk 0:02:46.1]} 15. e3
{[%clk 0:03:02.9]} 15... e5 {[%clk 0:02:45.7]} 16. d5 {[%clk 0:02:52.7]} 16...
cxd5 {[%clk 0:02:45.4]} 17. Qxd5 {[%clk 0:02:54.6]} 17... Nc5 {[%clk 0:02:24.2]}
18. Rac1 {[%clk 0:02:40.6]} 18... Rac8 {[%clk 0:02:06.9]} 19. b4 {[%clk
0:02:40.2]} 19... Ne6 {[%clk 0:01:55.8]} 20. Qe4 {[%clk 0:02:02.6]} 20... Rxc1
{[%clk 0:01:36.8]} 21. Rxc1 {[%clk 0:02:02.1]} 21... Nd8 {[%clk 0:01:37.8]} 22.
Ne1 {[%clk 0:01:48.4]} 22... Nc6 {[%clk 0:01:37.7]} 23. Nd3 {[%clk 0:01:49.9]}
23... Qd6 {[%clk 0:01:20.5]} 24. Nc5 {[%clk 0:01:39.9]} 24... Qd2 {[%clk
0:01:20.9]} 25. Rb1 {[%clk 0:01:36.8]} 25... Be7 {[%clk 0:01:12.2]} 26. Nxa6
{[%clk 0:01:22.2]} 26... bxa6 {[%clk 0:01:11.4]} 27. Qxc6 {[%clk 0:01:22.9]}
27... Bxb4 {[%clk 0:01:12.2]} 28. Qxa6 {[%clk 0:01:22.2]} 28... Bxa5 {[%clk
0:01:12.3]} 29. Qb5 {[%clk 0:01:14.7]} 29... Bc3 {[%clk 0:01:09.9]} 30. Bd5
{[%clk 0:01:14.3]} 30... Qc2 {[%clk 0:00:35.7]} 31. Kg2 {[%clk 0:01:03.6]} 31...
g6 {[%clk 0:00:32.3]} 32. Rb3 {[%clk 0:00:54]} 32... Be1 {[%clk 0:00:29.7]} 33.
Rb2 {[%clk 0:00:54.4]} 33... Qc3 {[%clk 0:00:23.2]} 34. Ra2 {[%clk 0:00:55.7]}
34... Qb4 {[%clk 0:00:22.6]} 35. Qd7 {[%clk 0:00:54.6]} 35... Qb6 {[%clk
0:00:17.5]} 36. Kf1 {[%clk 0:00:40.1]} 36... Bb4 {[%clk 0:00:18]} 37. Ra7 {[%clk
0:00:28.4]} 37... Qf6 {[%clk 0:00:17.8]} 38. Rb7 {[%clk 0:00:29.6]} 38... Bc5
{[%clk 0:00:18.5]} 39. Kg2 {[%clk 0:00:29.6]} 39... Kg7 {[%clk 0:00:19.1]} 40.
h4 {[%clk 0:00:28.9]} 40... h5 {[%clk 0:00:19]} 41. Rc7 {[%clk 0:00:26.6]} 41...
Qd6 {[%clk 0:00:18.4]} 42. Qxd6 {[%clk 0:00:19.8]} 42... Bxd6 {[%clk 0:00:20.4]}
43. Rd7 {[%clk 0:00:21]} 43... Bb8 {[%clk 0:00:22]} 44. e4 {[%clk 0:00:22.1]}
44... Kf6 {[%clk 0:00:21.9]} 45. Kf3 {[%clk 0:00:23.2]} 45... Kg7 {[%clk
0:00:23.2]} 46. Ke2 {[%clk 0:00:24.2]} 46... Kf6 {[%clk 0:00:24]} 47. Ke3 {[%clk
0:00:25.5]} 47... Kg7 {[%clk 0:00:25.2]} 48. f4 {[%clk 0:00:26.2]} 48... Kf6
{[%clk 0:00:22.9]} 49. Kf3 {[%clk 0:00:27]} 49... Kg7 {[%clk 0:00:23.9]} 50. Rb7
{[%clk 0:00:27]} 50... Kf6 {[%clk 0:00:24.7]} 51. Bxf7 {[%clk 0:00:28.3]} 51...
exf4 {[%clk 0:00:21.1]} 52. gxf4 {[%clk 0:00:29.2]} 52... Bxf4 {[%clk
0:00:20.3]} 53. Kxf4 {[%clk 0:00:29.7]} 53... Rxf7 {[%clk 0:00:21]} 54. Rxf7+
{[%clk 0:00:31.3]} 54... Kxf7 {[%clk 0:00:22.1]} 55. Kg5 {[%clk 0:00:33.2]}
55... Kg7 {[%clk 0:00:20.5]} 56. Kf4 {[%clk 0:00:29.3]} 56... Kf6 {[%clk
0:00:21.2]} 57. e5+ {[%clk 0:00:28.5]} 57... Ke7 {[%clk 0:00:15]} 58. Ke4 {[%clk
0:00:27.3]} 58... Ke6 {[%clk 0:00:15.5]} 59. Kf4 {[%clk 0:00:28.6]} 59... Ke7
{[%clk 0:00:15.4]} 60. Ke3 {[%clk 0:00:29.7]} 60... Kf7 {[%clk 0:00:15.3]} 61.
Kd4 {[%clk 0:00:29.7]} 61... Ke6 {[%clk 0:00:14.7]} 62. Ke4 {[%clk 0:00:30.9]}
62... Kd7 {[%clk 0:00:06.5]} 63. Kd5 {[%clk 0:00:31.8]} 63... Ke7 {[%clk
0:00:07.9]} 64. e6 {[%clk 0:00:32.5]} 64... g5 {[%clk 0:00:07.8]} 65. hxg5
{[%clk 0:00:33.9]} 65... h4 {[%clk 0:00:09.3]} 66. g6 {[%clk 0:00:35.3]} 66...
h3 {[%clk 0:00:10.7]} 67. g7 {[%clk 0:00:35]} 67... h2 {[%clk 0:00:12.2]} 68.
g8=Q {[%clk 0:00:36.6]} 68... h1=Q+ {[%clk 0:00:13.8]} 69. Ke5 {[%clk
0:00:38.4]} 69... Qe1+ {[%clk 0:00:14.5]} 70. Kf5 {[%clk 0:00:39]} 70... Qf2+
{[%clk 0:00:15.6]} 71. Ke5 {[%clk 0:00:40.6]} 71... Qe3+ {[%clk 0:00:16.5]} 72.
Kf5 {[%clk 0:00:42.2]} 72... Qf3+ {[%clk 0:00:17.5]} 73. Ke5 {[%clk 0:00:43.9]}
73... Qe3+ {[%clk 0:00:18.6]} 74. Kf5 {[%clk 0:00:45.6]} 74... Qf3+ {[%clk
0:00:18.7]} 75. Ke5 {[%clk 0:00:47.5]} 1/2-1/2